fUSD/lending_fUSD_20251214
["ID","MTS","AMOUNT","RATE_DAILY","PERIOD"]
[398498744,1765754734435,150.0,0.00015288,2]
[398498745,1765754734471,150.0,0.00015288,2]
[398498746,1765754748235,150.0,0.00015288,2]
[398498747,1765754755131,823.01206863,0.000149,2]
[398498769,1765754833938,200.0,0.00015685,2]
[398498813,1765755030186,1000.0,0.00013699,2]
[398498835,1765755032402,-1202.17786905,0.00015756,2]
[398498837,1765755032430,-397.82213095,0.00015756,2]
[398498838,1765755032439,-42.92817905,0.00015765,2]
[398498839,1765755032449,-107.07182095,0.00015765,2]
[398498840,1765755032458,-152.0,0.00015775,2]
[398498841,1765755032468,-152.0,0.00015775,2]
[398498842,1765755032477,-152.0,0.00015775,2]
[398498843,1765755032486,-152.0,0.00015775,2]
[398498844,1765755032495,-151.16701834,0.00015775,2]
[398498845,1765755032503,-152.0,0.00015775,2]
[398498846,1765755032512,-152.0,0.00015775,2]
[398498847,1765755032521,-157.0,0.00015775,2]
[398498848,1765755032530,-157.0,0.00015775,2]
[398498849,1765755032539,-152.0,0.00015775,2]
[398498850,1765755032548,-157.0,0.00015775,2]
[398498851,1765755032557,-28.13126432,0.00015775,2]
[398498852,1765755032568,-123.86873568,0.00015775,2]
[398498853,1765755032577,-140.73126404,0.00015775,2]
[398498854,1765755032649,-16.26873596,0.00015775,2]
[398498856,1765755032659,-157.0,0.00015775,2]
[398498858,1765755032669,-152.0,0.00015775,2]
[398498860,1765755032678,-152.0,0.00015775,2]
[398498862,1765755032687,-152.0,0.00015775,2]
[398498864,1765755032696,-99.0691351,0.00015775,2]
[398498867,1765755032707,-52.9308649,0.00015775,2]
[398498869,1765755032716,-152.0,0.00015775,2]
[398498871,1765755032725,-99.31264508,0.00015775,2]
[398498873,1765755032736,-52.68735492,0.00015775,2]
[398498875,1765755032745,-152.0,0.00015775,2]
[398498877,1765755032753,-152.0,0.00015775,2]
[398498879,1765755032762,-765.4,0.00015791,2]
[398498881,1765755032771,-463.01763275,0.00015849,2]
[398498884,1765755032782,-1521.61397669,0.00015849,2]
[398498886,1765755032791,-426.91,0.00015954,2]
[398498888,1765755032801,-250.0,0.00015954,2]
[398498890,1765755032809,-803.88161295,0.00015974,2]
[398498892,1765755032821,-373.29972738,0.00015974,2]
[398498986,1765755040056,-152.0,0.00015775,2]
[398498987,1765755040066,-152.0,0.00015775,2]
[398498988,1765755040075,-999.0,0.000159,3]
[398498989,1765755040085,-1265.11865967,0.00015974,2]
[398498990,1765755040094,-95.05551836,0.0001611,2]
[398498991,1765755040105,-204.94448164,0.0001611,2]
[398498992,1765755040116,-17399.45551836,0.00016111,2]
[398498993,1765755040132,-822.16954217,0.00016111,2]
[398498994,1765755040143,-791.20191441,0.00016111,2]
[398498995,1765755040154,-633.14302506,0.00016111,2]
[398498996,1765755040164,-500.0,0.00016137,2]
[398498997,1765755040173,-578.20924308,0.00016149,2]
[398498998,1765755040182,-300.0,0.00016149,2]
[398498999,1765755040192,-7770.88623359,0.000162,5]
[398499000,1765755040201,-1000.0,0.0001663,2]
[398499001,1765755040211,-186.29,0.00016656,2]
[398499002,1765755040220,-966.79249822,0.0001666,2]
[398499003,1765755040230,-168.0,0.00016667,2]
[398499004,1765755040239,-288.38,0.00016673,2]
[398499005,1765755040249,-500.0,0.00016699,2]
[398499006,1765755040261,-150.0,0.00016699,2]
[398499007,1765755040271,-150.0,0.00016699,2]
[398499008,1765755040280,-150.0,0.00016699,2]
[398499009,1765755040289,-206.44336002,0.00016699,2]
[398499010,1765755040299,-500.0,0.00016699,2]
[398499011,1765755040308,-500.0,0.00016699,2]
[398499012,1765755040318,-150.67470189,0.00016699,2]
[398499013,1765755040327,-150.0,0.00016699,2]
[398499014,1765755040336,-150.0,0.00016699,2]
[398499015,1765755040345,-150.0,0.00016699,2]
[398499016,1765755040355,-1170.0,0.00016699,2]
[398499017,1765755040365,-150.0,0.00016699,2]
[398499018,1765755040374,-500.0,0.00016699,2]
[398499020,1765755040383,-150.0,0.00016699,2]
[398499022,1765755040393,-150.0,0.00016699,2]
[398499024,1765755040403,-150.0,0.00016699,2]
[398499027,1765755040412,-150.0,0.00016699,2]
[398499030,1765755040421,-150.0,0.00016699,2]
[398499032,1765755040430,-150.0,0.00016699,2]
[398499033,1765755040440,-418.7101059,0.000167,2]
[398499034,1765755040466,-285.2798941,0.000167,2]
[398499035,1765755040476,-500.0,0.0001672,2]
[398499036,1765755040485,-453.67801686,0.0001672,2]
[398499037,1765755040496,-46.32198314,0.0001672,2]
[398499038,1765755040505,-500.0,0.0001672,2]
[398499039,1765755040515,-500.0,0.0001672,2]
[398499040,1765755040524,-1000.0,0.0001672,2]
[398499041,1765755040533,-1000.0,0.0001672,2]
[398499042,1765755040543,-500.0,0.0001672,2]
[398499043,1765755040552,-90.49860614,0.0001672,2]
[398499044,1765755040577,-909.50139386,0.0001672,2]
[398499045,1765755040586,-85.52442946,0.0001672,2]
[398499046,1765755040826,-152.0,0.00015775,2]
[398499047,1765755040837,-243.92311807,0.00016718,2]
[398499048,1765755040849,-256.07688193,0.00016718,2]
[398499049,1765755040859,-600.0,0.00016718,2]
[398499050,1765755040868,-500.0,0.00016718,2]
[398499051,1765755040879,-373.92301807,0.00016718,2]
[398499052,1765755040894,-126.07698193,0.00016718,2]
[398499053,1765755040903,-500.0,0.00016718,2]
[398499054,1765755040913,-500.0,0.00016718,2]
[398499055,1765755040923,-500.0,0.00016718,2]
[398499057,1765755040933,-414.47557054,0.0001672,2]
[398499059,1765755040943,-1000.0,0.0001672,2]
[398499060,1765755040952,-1000.0,0.0001672,2]
[398499061,1765755040962,-500.0,0.0001672,2]
[398499062,1765755040971,-1000.0,0.0001672,2]
[398499063,1765755040981,-1000.0,0.0001672,2]
[398499064,1765755040990,-1000.0,0.0001672,2]
[398499065,1765755041000,-1000.0,0.0001672,2]
[398499066,1765755041009,-1000.0,0.0001672,2]
[398499067,1765755041019,-620.0,0.0001672,2]
[398499068,1765755041028,-635.61005442,0.0001672,2]
[398499069,1765755041038,-1280.546,0.00016803,2]
[398499070,1765755041048,-500.0,0.00016836,2]
[398499071,1765755041057,-150.0,0.00016836,2]
[398499072,1765755041067,-200.0,0.00016836,2]
[398499073,1765755041076,-500.0,0.00016836,2]
[398499074,1765755041085,-500.0,0.00016836,2]
[398499075,1765755041094,-150.0,0.00016836,2]
[398499076,1765755041103,-150.0,0.00016836,2]
[398499077,1765755041112,-1170.0,0.00016836,2]
[398499078,1765755041121,-150.0,0.00016836,2]
[398499079,1765755041130,-500.0,0.00016836,2]
[398499080,1765755041145,-150.0,0.00016836,2]
[398499081,1765755041154,-150.0,0.00016836,2]
[398499082,1765755041163,-238.0,0.00016836,2]
[398499083,1765755041172,-568.06099924,0.000169,2]
[398499084,1765755041181,-481.15230225,0.00016913,2]
[398499085,1765755041190,-150.85899699,0.0001693,2]
[398499086,1765755041199,-500.0,0.00016973,2]
[398499087,1765755041208,-500.0,0.00016973,2]
[398499088,1765755041217,-298.17621909,0.00016973,2]
[398499089,1765755041227,-500.0,0.00016973,2]
[398499090,1765755041236,-500.0,0.00016973,2]
[398499091,1765755041245,-500.0,0.00016973,2]
[398499092,1765755041254,-582.87367429,0.00016973,2]
[398499093,1765755041271,-500.0,0.00016973,2]
[398499094,1765755041281,-501.42980184,0.00016973,2]
[398499095,1765755041290,-500.0,0.00016973,2]
[398499096,1765755041299,-250.0,0.00016973,2]
[398499097,1765755041309,-500.0,0.00016973,2]
[398499098,1765755041318,-260.89659114,0.00016973,2]
[398499099,1765755041328,-200.0,0.00016973,2]
[398499100,1765755041337,-1170.0,0.00016973,2]
[398499101,1765755041346,-200.0,0.00016973,2]
[398499102,1765755041356,-500.0,0.00016973,2]
[398499103,1765755041365,-150.0,0.00016973,2]
[398499104,1765755041375,-200.0,0.00016973,2]
[398499105,1765755041384,-500.0,0.00016986,2]
[398499106,1765755041393,-409.13481295,0.00016986,2]
[398499107,1765755041402,-197.30401532,0.00016997,2]
[398499108,1765755041412,-1002.2159,0.00016999,2]
[398499109,1765755041421,-412.52646674,0.00016999,2]
[398499110,1765755041430,-3992.0,0.00017,2]
[398499111,1765755041439,-168.664284,0.00017,2]
[398499112,1765755041449,-1285294.30105548,0.00017,2]
[398499113,1765755041458,-3343767.48540677,0.00017,2]
[398499114,1765755041486,-7182.87468006,0.00017,2]
[398499115,1765755041497,-1623.97084956,0.00017,2]
[398499116,1765755041508,-993.973564,0.00017,2]
[398499117,1765755041519,-365.60756904,0.00017,2]
[398499135,1765755044630,-152.0,0.00015775,2]
[398499136,1765755044640,-152.0,0.00015775,2]
[398499137,1765755044650,-152.0,0.00015775,2]
[398499138,1765755044659,-3611.04636652,0.00016627,2]
[398499143,1765755046297,-152.0,0.00015775,2]
[398499144,1765755046308,-152.0,0.00015775,2]
[398499145,1765755046318,-152.0,0.00015775,2]
[398499146,1765755046327,-425.398522,0.00016627,2]
[398499147,1765755046559,-152.0,0.00015775,2]
[398499148,1765755046569,-205.449822,0.00016627,2]
[398499149,1765755046581,-302.0,0.00016627,2]
[398499151,1765755046662,-12000.99837804,0.00016627,2]
[398499238,1765755324064,-250.0,0.00015725,2]
[398499239,1765755326212,-309.30716622,0.00015725,2]
[398499241,1765755328293,-250.0,0.00015725,2]
[398499242,1765755330453,-195.0,0.00015725,2]
[398499244,1765755332029,-166.69283378,0.00015725,2]
[398499245,1765755335534,-403.3430635,0.00015725,2]
[398499246,1765755336636,-193.0,0.00015725,2]
[398499368,1765755567369,23467.75,0.00015698,2]
[398499403,1765755644234,500.0,0.00015623,2]
[398499432,1765755668525,300.0,0.00015671,3]
[398499443,1765755679543,250.0,0.00015699,3]
[398499454,1765755723267,150.0,0.000225,120]
[398499495,1765755741553,150.0,0.00022,30]
[398499622,1765755926655,150.0,0.00015288,2]
[398499624,1765755927324,150.0,0.0001553,2]
[398499625,1765755927475,150.0,0.00015571,2]
[398499626,1765755927654,150.0,0.00015288,2]
[398499627,1765755928018,150.0,0.00015288,2]
[398499628,1765755934315,150.0,0.00015288,2]
[398499629,1765755934359,150.0,0.00015476,2]
[398499630,1765755934396,150.0,0.00015665,2]
[398499631,1765755934678,150.0,0.00015288,2]
[398499632,1765755937789,150.0,0.00015288,2]
[398499633,1765755938454,150.0,0.00015288,2]
[398499634,1765755946912,150.0,0.00015288,2]
[398499635,1765755946947,150.0,0.00015288,2]
[398499636,1765755950255,150.0,0.00015288,2]
[398499637,1765755952636,150.0,0.00015288,2]
[398499638,1765755952675,150.0,0.00015712,2]
[398499669,1765756000742,284.0,0.00015652,2]
[398499715,1765756091846,166.66,0.00014831,2]
[398499716,1765756092102,166.66,0.00015144,2]
[398499717,1765756092328,166.66,0.00015456,2]
[398499781,1765756154985,5250.80680167,0.000225,120]
[398499857,1765756232137,-85.0769365,0.00015725,2]
[398499858,1765756232146,-300.0,0.00015725,2]
[398499859,1765756232155,-195.0,0.00015725,2]
[398499860,1765756232165,-281.0,0.00015725,2]
[398499861,1765756232174,-200.0,0.00015731,2]
[398499862,1765756232184,-150.0,0.00015745,2]
[398499863,1765756232194,-200.0,0.00015753,3]
[398499864,1765756232204,-166.66,0.00015768,2]
[398499865,1765756232213,-150.0,0.00015773,2]
[398499866,1765756232223,-150.0,0.00015854,2]
[398499867,1765756232232,-150.0,0.00015854,2]
[398499868,1765756232242,-150.0,0.00015854,2]
[398499869,1765756232253,-150.0,0.00015854,2]
[398499870,1765756232263,-150.0,0.00015854,2]
[398499871,1765756232273,-50.66325659,0.00016016,2]
[398499872,1765756232296,-99.33674341,0.00016016,2]
[398499873,1765756232306,-166.67,0.00016033,2]
[398499874,1765756232316,-150.0,0.00016043,2]
[398499875,1765756232326,-166.66,0.0001608,2]
[398499876,1765756232335,-284.0,0.00016094,2]
[398499877,1765756232345,-168.0,0.00016132,2]
[398499878,1765756232354,-150.0,0.00016137,2]
[398499879,1765756232364,-150.0,0.00016137,2]
[398499880,1765756232373,-337.0,0.0001622,2]
[398499881,1765756232382,-150.0,0.00016231,2]
[398499882,1765756232392,-1200.0,0.00016245,2]
[398499883,1765756232401,-1107.0,0.00016246,2]
[398499884,1765756232410,-500.0,0.00016247,2]
[398499885,1765756232419,-150.0,0.00016258,2]
[398499886,1765756232428,-168.0,0.00016259,2]
[398499887,1765756232437,-300.0,0.00016367,2]
[398499888,1765756232447,-1000.0,0.00016368,2]
[398499889,1765756232456,-168.0,0.00016373,2]
[398499890,1765756232465,-230.7,0.00016391,2]
[398499891,1765756232474,-166.66,0.00016393,2]
[398499892,1765756232484,-150.0,0.0001642,2]
[398499893,1765756232492,-150.0,0.0001642,2]
[398499894,1765756232501,-150.0,0.0001642,2]
[398499895,1765756232510,-150.0,0.0001642,2]
[398499896,1765756232520,-150.0,0.0001642,2]
[398499897,1765756232530,-550.0,0.00016428,2]
[398499898,1765756232540,-300.0,0.00016428,2]
[398499899,1765756232549,-6396.71,0.00016438,2]
[398499900,1765756233028,-787.0,0.0001649,2]
[398499901,1765756233038,-150.0,0.00016501,2]
[398499902,1765756233048,-788.36,0.00016524,2]
[398499903,1765756233057,-500.0,0.00016524,2]
[398499904,1765756233067,-500.0,0.00016524,2]
[398499905,1765756233076,-500.0,0.00016524,2]
[398499906,1765756233086,-500.0,0.00016524,2]
[398499907,1765756233095,-500.0,0.00016524,2]
[398499908,1765756233105,-500.0,0.00016524,2]
[398499909,1765756233114,-500.0,0.00016524,2]
[398499910,1765756233123,-500.0,0.00016524,2]
[398499911,1765756233133,-500.0,0.00016524,2]
[398499912,1765756233142,-500.0,0.00016524,2]
[398499913,1765756233152,-500.0,0.00016524,2]
[398499914,1765756233162,-500.0,0.00016524,2]
[398499915,1765756233172,-500.0,0.00016524,2]
[398499916,1765756233181,-500.0,0.00016524,2]
[398499917,1765756233191,-500.0,0.00016524,2]
[398499918,1765756233201,-500.0,0.00016524,2]
[398499919,1765756233211,-500.0,0.00016524,2]
[398499920,1765756233221,-500.0,0.00016524,2]
[398499921,1765756233230,-500.0,0.00016524,2]
[398499922,1765756233240,-500.0,0.00016524,2]
[398499923,1765756233250,-500.0,0.00016524,2]
[398499924,1765756233260,-500.0,0.00016524,2]
[398499925,1765756233270,-500.0,0.00016524,2]
[398499926,1765756233280,-500.0,0.00016524,2]
[398499927,1765756233289,-500.0,0.00016524,2]
[398499928,1765756233299,-500.0,0.00016524,2]
[398499929,1765756233308,-500.0,0.00016524,2]
[398499930,1765756233318,-500.0,0.00016524,2]
[398499931,1765756233328,-500.0,0.00016524,2]
[398499932,1765756233338,-595.87375908,0.00016524,2]
[398499933,1765756233347,-500.0,0.00016524,2]
[398499934,1765756233357,-500.0,0.00016524,2]
[398499935,1765756233367,-500.0,0.00016524,2]
[398499936,1765756233376,-500.0,0.00016524,2]
[398499937,1765756233386,-500.0,0.00016524,2]
[398499938,1765756233395,-500.0,0.00016524,2]
[398499939,1765756233405,-500.0,0.00016524,2]
[398499940,1765756233414,-205.64347451,0.00016524,2]
[398499941,1765756233424,-500.0,0.00016524,2]
[398499942,1765756233433,-500.0,0.00016524,2]
[398499943,1765756233444,-500.0,0.00016524,2]
[398499944,1765756233454,-500.0,0.00016524,2]
[398499945,1765756233463,-500.0,0.00016524,2]
[398499946,1765756233473,-500.0,0.00016524,2]
[398499947,1765756233483,-500.0,0.00016524,2]
[398499948,1765756233494,-500.0,0.00016524,2]
[398499949,1765756233504,-329.73151446,0.00016524,2]
[398499950,1765756233514,-500.0,0.00016524,2]
[398499951,1765756233523,-500.0,0.00016524,2]
[398499952,1765756233533,-500.0,0.00016524,2]
[398499953,1765756233542,-500.0,0.00016524,2]
[398499954,1765756233552,-500.0,0.00016524,2]
[398499955,1765756233562,-500.0,0.00016524,2]
[398499956,1765756233572,-500.0,0.00016524,2]
[398499957,1765756233582,-500.0,0.00016524,2]
[398499958,1765756233591,-2618.5059281,0.00016525,2]
[398499959,1765756233604,-268.80144,0.00016525,2]
[398499960,1765756233616,-1135.57030507,0.00016525,2]
[398499961,1765756233627,-8802.7,0.00016525,2]
[398499973,1765756237770,-12663.47525058,0.00016525,2]
[398499974,1765756237781,-1679.5133657,0.00016525,2]
[398500107,1765756240007,-2202.2,0.00016525,2]
[398500108,1765756240097,-251.0711775,0.00016525,2]
[398500109,1765756240109,-1900.21875,0.00016525,2]
[398500110,1765756240204,-9352.75258305,0.00016525,2]
[398500111,1765756240214,-15264.02940191,0.00016551,2]
[398500112,1765756240224,-150.0,0.00016562,2]
[398500113,1765756240234,-1568.43478028,0.00016576,2]
[398500114,1765756240244,-620.0,0.00016607,2]
[398500115,1765756240254,-1000.0,0.00016607,2]
[398500116,1765756240268,-1000.0,0.00016607,2]
[398500117,1765756240277,-500.0,0.00016607,2]
[398500118,1765756240287,-500.0,0.00016607,2]
[398500119,1765756240296,-500.0,0.00016607,2]
[398500120,1765756240306,-500.0,0.00016607,2]
[398500121,1765756240316,-500.0,0.00016607,2]
[398500122,1765756240326,-500.0,0.00016607,2]
[398500123,1765756240336,-500.0,0.00016607,2]
[398500124,1765756240346,-500.0,0.00016607,2]
[398500125,1765756240356,-500.0,0.00016607,2]
[398500126,1765756240366,-500.0,0.00016607,2]
[398500127,1765756240376,-500.0,0.00016607,2]
[398500128,1765756240386,-500.0,0.00016607,2]
[398500129,1765756240397,-200.0,0.00016607,2]
[398500130,1765756240407,-635.61005442,0.00016607,2]
[398500131,1765756240418,-500.0,0.00016607,2]
[398500132,1765756240428,-500.0,0.00016607,2]
[398500133,1765756240438,-312.04115054,0.00016607,2]
[398500134,1765756240448,-1000.0,0.00016607,2]
[398500135,1765756240459,-1000.0,0.00016607,2]
[398500137,1765756240469,-1000.0,0.00016607,2]
[398500139,1765756240479,-1000.0,0.00016607,2]
[398500141,1765756240489,-1000.0,0.00016607,2]
[398500142,1765756240499,-150.0,0.00016609,2]
[398500143,1765756240510,-1568.43478028,0.00016616,2]
[398500144,1765756240519,-787.0,0.00016651,2]
[398500145,1765756240530,-1568.43478028,0.00016657,2]
[398500146,1765756240541,-644.52833214,0.0001666,2]
[398500147,1765756240551,-297.97632568,0.00016684,2]
[398500148,1765756240561,-1568.43478028,0.00016697,2]
[398500149,1765756240571,-412.52646674,0.00016698,2]
[398500150,1765756240581,-500.0,0.00016699,2]
[398500151,1765756240591,-150.0,0.00016699,2]
[398500152,1765756240602,-200.0,0.00016699,2]
[398500153,1765756240612,-500.0,0.00016699,2]
[398500154,1765756240622,-500.0,0.00016699,2]
[398500155,1765756240632,-150.0,0.00016699,2]
[398500156,1765756240642,-151.0906704,0.00016699,2]
[398500157,1765756240654,-150.0,0.00016699,2]
[398500158,1765756240665,-150.0,0.00016699,2]
[398500159,1765756240675,-150.0,0.00016699,2]
[398500160,1765756240685,-150.0,0.00016699,2]
[398500161,1765756240695,-150.0,0.00016699,2]
[398500162,1765756240706,-1121.0,0.00016699,2]
[398500163,1765756240718,-150.0,0.00016699,2]
[398500164,1765756240730,-500.0,0.00016699,2]
[398500165,1765756240740,-150.0,0.00016699,2]
[398500166,1765756240751,-150.0,0.00016699,2]
[398500167,1765756240761,-150.0,0.00016699,2]
[398500168,1765756240771,-272.62830871,0.00016699,2]
[398500169,1765756240782,-150.0,0.00016699,2]
[398500171,1765756240793,-150.0,0.00016699,2]
[398500173,1765756240803,-150.0,0.00016699,2]
[398500175,1765756240813,-150.0,0.00016699,2]
[398500177,1765756240823,-150.0,0.00016699,2]
[398500179,1765756240833,-150.0,0.00016703,2]
[398500181,1765756240843,-500.0,0.00016729,2]
[398500183,1765756240853,-234.90026751,0.00016729,2]
[398500185,1765756240863,-1568.43478028,0.00016738,2]
[398500187,1765756240873,-150.0,0.00016744,2]
[398500188,1765756240884,-1568.43478028,0.00016778,2]
[398500189,1765756240894,-150.0,0.00016798,2]
[398500190,1765756240905,-788.36,0.00016798,2]
[398500192,1765756240915,-500.0,0.00016798,2]
[398500194,1765756240927,-1568.43478028,0.00016819,2]
[398500195,1765756240939,-1280.546,0.00016829,2]
[398500196,1765756240949,-500.0,0.00016836,2]
[398500197,1765756240959,-250.0,0.00016836,2]
[398500198,1765756240970,-500.0,0.00016836,2]
[398500199,1765756240980,-500.0,0.00016836,2]
[398500200,1765756240990,-150.0,0.00016836,2]
[398500201,1765756241001,-150.0,0.00016836,2]
[398500202,1765756241012,-200.0,0.00016836,2]
[398500203,1765756241025,-1121.0,0.00016836,2]
[398500204,1765756241037,-200.0,0.00016836,2]
[398500205,1765756241047,-500.0,0.00016836,2]
[398500206,1765756241057,-150.0,0.00016836,2]
[398500207,1765756241067,-150.0,0.00016836,2]
[398500208,1765756241077,-200.0,0.00016836,2]
[398500209,1765756241087,-150.0,0.00016836,2]
[398500210,1765756241097,-1568.43478028,0.00016859,2]
[398500211,1765756241107,-200.0,0.00016864,2]
[398500212,1765756241117,-1402.54435929,0.00016873,2]
[398500213,1765756241128,-1402.54435926,0.00016876,2]
[398500214,1765756241138,-1402.54435926,0.00016879,2]
[398500215,1765756241148,-1402.54435926,0.00016882,2]
[398500216,1765756241158,-1402.54435926,0.00016885,2]
[398500217,1765756241169,-1402.54435926,0.00016888,2]
[398500218,1765756241179,-1402.54435926,0.00016891,2]
[398500219,1765756241190,-1402.54435926,0.00016894,2]
[398500220,1765756241201,-1402.54435926,0.00016897,2]
[398500221,1765756241211,-1568.43478028,0.000169,2]
[398500222,1765756241221,-1402.54435926,0.000169,2]
[398500223,1765756241232,-1348.70232542,0.000169,2]
[398500224,1765756241242,-150.85899699,0.00016918,2]
[398500225,1765756241252,-1022.84,0.00016922,2]
[398500226,1765756241262,-298.17621909,0.00016973,2]
[398500227,1765756241272,-500.0,0.00016973,2]
[398500228,1765756241282,-500.0,0.00016973,2]
[398500229,1765756241292,-500.0,0.00016973,2]
[398500230,1765756241302,-582.87367429,0.00016973,2]
[398500231,1765756241313,-500.0,0.00016973,2]
[398500232,1765756241324,-500.0,0.00016973,2]
[398500233,1765756241334,-501.42980184,0.00016973,2]
[398500234,1765756241344,-500.0,0.00016973,2]
[398500235,1765756241355,-150.0,0.00016973,2]
[398500236,1765756241365,-500.0,0.00016973,2]
[398500237,1765756241375,-500.0,0.00016973,2]
[398500238,1765756241385,-150.0,0.00016973,2]
[398500239,1765756241396,-1121.0,0.00016973,2]
[398500240,1765756241406,-544.0,0.00016973,2]
[398500241,1765756241416,-200.0,0.00016973,2]
[398500242,1765756241426,-200.0,0.00016973,2]
[398500243,1765756241436,-150.0,0.00016973,2]
[398500244,1765756241447,-500.0,0.00016973,2]
[398500245,1765756241457,-150.0,0.00016973,2]
[398500246,1765756241468,-372.15957158,0.00016986,2]
[398500247,1765756241478,-566.06,0.00016986,2]
[398500248,1765756241488,-150.0,0.00016986,2]
[398500249,1765756241499,-150.0,0.00016986,2]
[398500250,1765756241509,-150.0,0.00016986,2]
[398500251,1765756241519,-150.0,0.00016986,2]
[398500252,1765756241530,-150.0,0.00016986,2]
[398500253,1765756241540,-150.0,0.00016986,2]
[398500254,1765756241550,-150.0,0.00016986,2]
[398500255,1765756241560,-150.0,0.00016986,2]
[398500256,1765756241571,-150.0,0.00016986,2]
[398500257,1765756241583,-197.30401532,0.00016997,2]
[398500258,1765756241594,-75424.4230261,0.00016998,2]
[398500259,1765756241605,-3287.268891,0.00016998,2]
[398500260,1765756241617,-1326.4811603,0.00016998,2]
[398500261,1765756241632,-23627.9018627,0.00016998,2]
[398500262,1765756241644,-1538.1098374,0.00016998,2]
[398500263,1765756241656,-1674.41723884,0.00016999,5]
[398500264,1765756241667,-500.0,0.00016999,2]
[398500265,1765756241678,-500.0,0.00016999,2]
[398500266,1765756241689,-500.0,0.00016999,2]
[398500267,1765756241700,-500.0,0.00016999,2]
[398500268,1765756241710,-500.0,0.00016999,2]
[398500269,1765756241720,-387.34503477,0.00016999,2]
[398500270,1765756241730,-4401.0,0.00017,2]
[398500271,1765756241740,-202.40476,0.00017,2]
[398500272,1765756241753,-1742063.37666502,0.00017,2]
[398500273,1765756241763,-150.0,0.00017,2]
[398500274,1765756241773,-150.0,0.00017,2]
[398500275,1765756241784,-4716.99298129,0.00017,2]
[398500276,1765756241795,-150.0,0.00017,2]
[398500277,1765756241805,-535.52303297,0.00017,2]
[398500278,1765756241815,-3632.96426589,0.00017,2]
[398500279,1765756241825,-150.0,0.00017,2]
[398500280,1765756241835,-7532.46652881,0.00017,2]
[398500281,1765756241845,-250.0,0.00017,2]
[398500282,1765756241855,-250.0,0.00017,2]
[398500283,1765756241865,-250.0,0.00017,2]
[398500284,1765756241876,-250.0,0.00017,2]
[398500285,1765756241886,-250.0,0.00017,2]
[398500286,1765756241896,-250.0,0.00017,2]
[398500287,1765756241906,-250.0,0.00017,2]
[398500288,1765756241916,-250.0,0.00017,2]
[398500289,1765756241929,-250.0,0.00017,2]
[398500290,1765756241943,-250.0,0.00017,2]
[398500291,1765756241954,-250.0,0.00017,2]
[398500292,1765756241964,-250.0,0.00017,2]
[398500293,1765756241974,-250.0,0.00017,2]
[398500294,1765756241984,-250.0,0.00017,2]
[398500295,1765756241994,-250.0,0.00017,2]
[398500296,1765756242004,-250.0,0.00017,2]
[398500297,1765756242015,-250.0,0.00017,2]
[398500298,1765756242025,-250.0,0.00017,2]
[398500299,1765756242035,-250.0,0.00017,2]
[398500300,1765756242045,-250.0,0.00017,2]
[398500301,1765756242055,-250.0,0.00017,2]
[398500302,1765756242066,-250.0,0.00017,2]